Cogmind - Beta 10.2 @@@ ROGUE MODE // 2021.10.01 @ 17:22:37 Player: Cmdr.Laserstrahl Result: Self-destructed Performance ------------- Evolutions (2) 1000 Regions Visited (3) 600 Robots Destroyed (46) 230 Value Destroyed (1157) 1157 Prototype IDs (3) 60 Alien Tech Used (0) 0 Bonus (21) 21 TOTAL SCORE: 3068 Bonus ------- High Alert Combat Kills 21 Cogmind --------- Core Integrity 186/550 Matter 208/300 Energy 47/160 System Corruption 0% Temperature Cool (3) Movement Flying (34) Location -8/Materials Parts ------- > --- POWER (2) -------- Light Nuclear Core > --- PROPULSION (3) --- VTOL Module VTOL Module VTOL Module > --- UTILITY (4) ------ Advanced Heat Sink Cooling System Improved Targeting Computer Utility Shielding > --- WEAPON (2) ------- Shock Rifle Pulse Rifle > --- INVENTORY (4) ---- VTOL Module Improved Heat Sink Hardened Medium Armor Plating Hardlight Generator Peak State ------------ > --- POWER ------------ Light Nuclear Core > --- PROPULSION ------- VTOL Module VTOL Module VTOL Module > --- UTILITY ---------- Advanced Heat Sink Cooling System Improved Targeting Computer Utility Shielding > --- WEAPON ----------- Shock Rifle Pulse Rifle > --- INVENTORY -------- VTOL Module Improved Heat Sink Hardened Medium Armor Plating Hardlight Generator [Rating: 26] Favorites ----------- Power Improved Ion Engine Engine Improved Ion Engine Power Core Light Nuclear Core Propulsion Wheel Wheel Wheel Flight Unit VTOL Module Utility Improved Targeting Computer Device Field Recycling Unit Storage Small Storage Unit Processor Improved Targeting Computer Protection Core Shielding Weapon Heavy Assault Rifle Energy Gun Beam Rifle Energy Cannon Advanced Beam Cannon Ballistic Gun Heavy Assault Rifle Launcher Improved Grenade Launcher Build | -11 -10 -9 -8 ------- Run | Scr Mat Mat Mat Slots Evolved 4 | . . 2 2 Power 1 | . . . 1 Propulsion 1 | . . . 1 Utility 2 | . . 2 . Weapon . | . . . . Parts Attached 52 | 6 1 28 17 Power 6 | 1 . 3 2 Engine 5 | 1 . 3 1 Core 1 | . . . 1 Reactor . | . . . . Propulsion 13 | 2 . 5 6 Treads . | . . . . Leg . | . . . . Wheel 8 | 2 . 5 1 Hover . | . . . . Flight 5 | . . . 5 Utility 12 | 1 1 7 3 Device 3 | . . 1 2 Storage 2 | 1 . 1 . Processor 1 | . . 1 . Hackware . | . . . . Protection 6 | . 1 4 1 Artifact . | . . . . Weapon 21 | 2 . 13 6 Energy Gun 6 | 1 . 3 2 Energy Cannon 2 | . . 2 . Ballistic Gun 9 | 1 . 5 3 Ballistic Cannon . | . . . . Launcher 4 | . . 3 1 Special Weapon . | . . . . Impact Weapon . | . . . . Slashing Weapon . | . . . . Piercing Weapon . | . . . . Special Melee Weapon . | . . . . Unidentified Prototypes 3 | . . 2 1 Parts Lost 18 | . . 8 10 Power 3 | . . 1 2 Propulsion 6 | . . 3 3 Utility 2 | . . 1 1 Weapon 7 | . . 3 4 Highest Loss Streak 10 | . . 5 10 Average Slot Usage (%) 94 | . 88 99 77 Engine 11 | . 14 10 9 Wheel 21 | . 28 21 13 Device 1 | . . 2 1 Storage 10 | . 14 11 7 Processor 8 | . . 10 9 Protection 16 | . 2 19 15 Energy Gun 7 | . 14 7 1 Energy Cannon 2 | . . 2 6 Ballistic Gun 11 | . 14 11 7 Naked Turns . | . . . . Heaviest Build 38 | 12 15 32 38 Greatest Support 36 | 26 26 26 36 Greatest Overweight (x) 2 | 1 . 1 2 Average Overweight (x) . | . . . . Largest Inventory Capacity 8 | 6 6 8 8 Average Capacity 6 | 5 6 6 7 Most Carried 8 | 5 6 8 8 Average Carried 6 | 2 5 6 7 Final Capacity 8 | 6 6 8 4 Final Carried 8 | 2 6 8 4 Class Distribution -------------------- 61% | Mutant 38% | Scavenger-Mutant Dominant Class ---------------- Mutant | -10/Materials Scavenger-Mutant | -9/Materials Mutant | -8/Materials Resources | -11 -10 -9 -8 ----------- Run | Scr Mat Mat Mat Matter Collected 937 | 254 46 502 135 Remotely . | . . . . Salvage Created 1457 | . 59 945 453 Parts 101 | . 2 69 30 Haulers Intercepted 4 | . 1 3 . Recyclers Shooed 2 | . . 2 . Parts Field Recycled . | . . . . Retrieved Matter . | . . . . Parts Self-Destructed . | . . . . Prevented . | . . . . Kills | -11 -10 -9 -8 ------- Run | Scr Mat Mat Mat Combat Hostiles Destroyed 27 | . . 20 7 Guns 13 | . . 11 2 Cannons 3 | . . . 3 AOE 11 | . . 9 2 Classes Destroyed 10 | . 1 8 1 Worker 6 | . . 3 3 Builder 2 | . . 1 1 Tunneler 1 | . . 1 . Hauler 4 | . 1 3 . Recycler 1 | . . . 1 Operator 1 | . . 1 . Watcher 4 | . . 4 . Swarmer 4 | . . 4 . Grunt 16 | . . 11 5 Sentry 7 | . . 5 2 Best Kill Streak 9 | . 1 9 6 Combat Bots Only 5 | . . 5 4 Max Kills in Single Turn 4 | . 1 4 2 Gunslinging . | . . . . Exploded 3 | . . 3 2 Melee . | . . . . Uniques/NPCs Destroyed . | . . . . Combat | -11 -10 -9 -8 -------- Run | Scr Mat Mat Mat Damage Taken 2673 | . . 1387 1286 Core 623 | . . 259 364 Absorbed by Shields . | . . . . Core Remaining (%) 78 | 100 100 35 . Volleys Fired 103 | . 10 69 24 Largest 2 | . 2 2 2 Hottest 91 | . 60 79 91 Shots Fired 193 | . 20 128 45 Gun 156 | . 20 114 22 Cannon 25 | . . 5 20 Launcher 12 | . . 9 3 Special . | . . . . Kinetic 102 | . 10 70 22 Thermal 54 | . 10 24 20 Explosive 12 | . . 9 3 Electromagnetic 25 | . . 25 . Robot Hit Streak 15 | . 3 15 8 Robot Miss Streak 5 | . 2 5 3 Penetration Max . | . . . . Secondary Targets . | . . . . Shots Hit Robots 128 | . 10 92 26 Core Hits 76 | . 4 52 20 Critical Hits 4 | . . 1 3 Critical Kills 2 | . . 1 1 Critical Parts Destroyed 2 | . . . 2 Melee Attacks . | . . . . Impact . | . . . . Slashing . | . . . . Piercing . | . . . . Sneak Attacks . | . . . . Combat Hostiles . | . . . . Follow-up Attacks . | . . . . Damage Inflicted 3193 | . 118 2068 1007 Guns 1310 | . 118 986 206 Cannons 424 | . . 96 328 Explosions 1448 | . . 975 473 Melee . | . . . . Ramming 11 | . . 11 . Kinetic 732 | . 62 464 206 Thermal 680 | . 56 296 328 Explosive 1362 | . . 889 473 Electromagnetic 408 | . . 408 . Impact . | . . . . Slashing . | . . . . Piercing . | . . . . Highest Corruption 2 | . . 2 . Average Corruption 2 | . . 2 . Corruption Purged . | . . . . Effects 3 | . . 3 . Heat Flow Errors 1 | . . 1 . Energy Discharges 1 | . . 1 . Data Loss (minor) 1 | . . 1 . Overload Shots . | . . . . Overflow Damage 117 | . . 72 45 Projectiles . | . . . . Explosions 117 | . . 72 45 Melee . | . . . . Knockbacks . | . . . . Impact . | . . . . Kinetic . | . . . . Secondary . | . . . . Self-Inflicted Damage 180 | . . 80 100 Shots 5 | . . 2 3 Rammed 2 | . . 2 . Targets Rammed 2 | . . 2 . Kicked . | . . . . Crushed . | . . . . Highest Temperature 503 | . 20 236 503 Average Temperature 93 | . 12 49 199 Received Heat Transfer 972 | . . 486 486 Effects 13 | . . 4 9 Shutdowns 3 | . . . 3 Energy Bleed 1 | . . . 1 Interference 4 | . . 4 . Damage (major) 5 | . . . 5 Siege Activations . | . . . . Robots Corrupted . | . . . . Combat Hostiles . | . . . . Parts Fried 1 | . . 1 . Impact Corruptions . | . . . . Robots Melted . | . . . . Combat Hostiles . | . . . . Parts Melted 2 | . . 1 1 Heat Transferred 1337 | . 125 620 592 Parts Sabotaged . | . . . . Parts Stolen . | . . . . Parts Stripped . | . . . . Power Chain Reactions 3 | . . 3 . Missiles Intercepted . | . . . . Alert | -11 -10 -9 -8 ------- Run | Scr Mat Mat Mat Peak Influence 456 | . 52 456 381 Initial 178 | . . 21 178 Average 219 | . 23 257 274 Maximum Alert Level 2 | . . 2 1 Low Security (%) 41 | 100 100 30 20 Level 1 41 | . . 43 79 Level 2 17 | . . 25 . Level 3 . | . . . . Level 4 . | . . . . Level 5 . | . . . . High Security . | . . . . Max Security . | . . . . Squads Dispatched 5 | . . 4 1 Investigation 1 | . . 1 . Extermination . | . . . . Reinforcement 4 | . . 3 1 Assault . | . . . . Garrison . | . . . . Intercept . | . . . . Construction Impeded . | . . . . Haulers Reinforced . | . . . . Stealth | -11 -10 -9 -8 --------- Run | Scr Mat Mat Mat Distress Signals 8 | . . 4 4 Communications Jammed . | . . . . Distress Signals . | . . . . Times Spotted 61 | . 5 31 25 Peak Tracking Total 12 | . 2 7 12 Tactical Retreats 6 | . . 3 3 Traps | -11 -10 -9 -8 ------- Run | Scr Mat Mat Mat Traps Triggered . | . . . . Indirectly . | . . . . Trap Hack Attempts . | . . . . Triggered . | . . . . Disarmed . | . . . . Reprogrammed . | . . . . Reused . | . . . . Traps Extracted . | . . . . Installed . | . . . . Triggered . | . . . . Machines | -11 -10 -9 -8 ---------- Run | Scr Mat Mat Mat Machines Disabled 6 | . . 5 1 Max in Single Turn 2 | . . 2 1 Machines Sabotaged . | . . . . Garrisons Compromised . | . . . . Overloaded Fab Kills . | . . . . Fab Network Shutdowns . | . . . . Hacking | -11 -10 -9 -8 --------- Run | Scr Mat Mat Mat Machines Accessed 6 | . 2 3 1 Terminals 4 | . 2 1 1 Fabricators . | . . . . Repair Stations 1 | . . 1 . Recycling Units . | . . . . Scanalyzers 1 | . . 1 . Garrison Access . | . . . . Total Hacks 15 | . 2 11 2 Successful 12 | . 2 10 . Failed 3 | . . 1 2 Catastrophic . | . . . . Database Lockouts . | . . . . Manual . | . . . . Terminals 5 | . 2 1 2 Fabricators . | . . . . Repair Stations 3 | . . 3 . Recycling Units . | . . . . Scanalyzers 7 | . . 7 . Garrison Access . | . . . . Terminal Hacks 3 | . 2 1 . Locate Traps 2 | . 2 . . Zone Layout 1 | . . 1 . Fabricator Hacks . | . . . . Repair Station Hacks 2 | . . 2 . Scan Component 1 | . . 1 . Repair 1 | . . 1 . Recycling Unit Hacks . | . . . . Scanalyzer 7 | . . 7 . Insert Component 3 | . . 3 . Analyze 4 | . . 4 . Garrison Access Hacks . | . . . . Unauthorized Hacks . | . . . . Terminals . | . . . . Fabricators . | . . . . Repair Stations . | . . . . Recycling Units . | . . . . Scanalyzers . | . . . . Garrison Access . | . . . . Data Cores Recovered . | . . . . Used . | . . . . Hacking Detections 4 | . 2 1 1 Full Trace Events 1 | . . 1 . Feedback Events . | . . . . Feedback Blocked . | . . . . Robot Schematics Acquired . | . . . . Robots Built . | . . . . Matter . | . . . . Time . | . . . . Total Robot Build Rating . | . . . . Part Schematics Acquired 3 | . . 3 . Parts Built . | . . . . Matter . | . . . . Time . | . . . . Total Part Build Rating . | . . . . Parts Repaired 1 | . . 1 . Time 51 | . . 51 . Parts Recycled . | . . . . Recycled Matter . | . . . . Retrieved Matter . | . . . . Retrieved Components . | . . . . Parts Scanalyzed 3 | . . 3 . Part Schematics Acquired 3 | . . 3 . Parts Damaged 1 | . . 1 . Bothacking | -11 -10 -9 -8 ------------ Run | Scr Mat Mat Mat Used RIF Installer . | . . . . Robots Hacked . | . . . . Non-combat . | . . . . Combat . | . . . . Robot Hacks Applied . | . . . . Relay Couplers Released . | . . . . Robots Rewired . | . . . . Allies Hacked . | . . . . Hacks Repelled . | . . . . Allies | -11 -10 -9 -8 -------- Run | Scr Mat Mat Mat Total Allies . | . . . . Largest Group . | . . . . Highest-Rated Group . | . . . . Highest-Rated Ally . | . . . . Total Orders . | . . . . Ally Attacks . | . . . . Total Damage . | . . . . Kills . | . . . . Allies Corrupted . | . . . . Allies Melted . | . . . . Intel | -11 -10 -9 -8 ------- Run | Scr Mat Mat Mat Robot Analysis Total . | . . . . Derelict Logs Recovered . | . . . . Drone Launches . | . . . . Drone Recoveries . | . . . . Exploration | -11 -10 -9 -8 ------------- Run | Scr Mat Mat Mat Turns Passed 1632 | 43 238 1121 230 Spaces Moved 1377 | 37 224 937 179 Core 20 | 11 . . 9 Treads . | . . . . Legs . | . . . . Wheels 1281 | 26 224 937 94 Hover . | . . . . Flight 76 | . . . 76 Fastest Speed 34 | 50 90 80 34 Average Speed 86 | 80 90 89 66 Slowest Speed 120 | 100 90 90 120 Overloaded Moves . | . . . . Propulsion Burnouts . | . . . . Robots Hopped . | . . . . Cave-ins Triggered . | . . . . Exploration Rate (%) 34 | 3 43 64 27 Regions Visited 3 Branch Regions . Pre-discovered Areas . | . . . . Known Exits Taken . | . . . . Unknown Exits Taken 3 | 1 1 1 . Scrap Searched . | . . . . Spaces Dug . | . . . . Terrain Destroyed 53 | . . 50 3 Melee . | . . . . Projectile . | . . . . AOE 53 | . . 50 3 Terrain Rammed . | . . . . Walls Destroyed . | . . . . Machines Disabled . | . . . . Actions | -11 -10 -9 -8 --------- Run | Scr Mat Mat Mat Total 1625 | 49 240 1095 241 Wait 27 | . . 18 9 Move 1374 | 36 223 936 179 Hop . | . . . . Pick Up 41 | 7 5 23 6 Fast Attach 17 | 1 1 6 9 Attach 20 | 5 . 9 6 Detach . | . . . . Swap 15 | . . 13 2 Drop 26 | . 1 19 6 Fire 103 | . 10 69 24 Melee . | . . . . Ram 2 | . . 2 . Kick . | . . . . Crush . | . . . . Escape Stasis . | . . . . Rewire . | . . . . Trap . | . . . . Miscellaneous . | . . . . Route ------- -11/Scrapyard -10/Materials (discovered 2 exits: *Mat / [*Min]) -9/Materials (discovered 2 exits: *Mat x2) -8/Materials (discovered 1 exit: [*Fac]) History --------- Turn | Location | Event 17 | -11/Scrapyard | Discovered new exit (range 16) 44 | -11/Scrapyard | Entered Materials 196 | -10/Materials | Discovered new exit (range 13) 231 | -10/Materials | Discovered new exit (range 15) 282 | -10/Materials | Entered another Materials area 282 | -9/Materials | Evolved 2 slots: Utility x2 313 | -9/Materials | Build established: Mutant 478 | -9/Materials | Lost 5 parts (1n1u3w) 674 | -9/Materials | Core integrity fell below 50% 884 | -9/Materials | Build established: Scavenger-Mutant 1007 | -9/Materials | Discovered new exit (range 15) 1174 | -9/Materials | Discovered new exit (range 16) 1201 | -9/Materials | Repaired Imp. EM Shotgun? 1403 | -9/Materials | Entered another Materials area 1403 | -8/Materials | Evolved 2 slots: Power x1, Propulsion x1 1436 | -8/Materials | Build established: Mutant 1592 | -8/Materials | Core integrity fell below 50% 1608 | -8/Materials | Discovered new exit (range 16) 1621 | -8/Materials | Lost 10 parts (2p3n1u4w) 1633 | -8/Materials | Self-destructed Last Messages --------------- 01594_ U-05 Engineer lays Concrete. 01594_ Acquired 50 matter. 01595_ U-05 Engineer lays Concrete. 01595_ Acquired VTOL Module. 01596_ U-05 Engineer lays Concrete. 01597_ K-01 Serf collects debris. 01597_ Acquired VTOL Module. 01598_ U-05 Engineer lays Concrete. 01599_ Acquired VTOL Module. 01599_ U-05 Engineer lays Concrete. 01600_ K-01 Serf collects debris. 01601_ U-05 Engineer lays Concrete. 01602_ Acquired VTOL Module. 01603_ T-07 Excavator is excavating. 01608_ EXIT=FOUND 01613_ Connecting with Terminal... 01613_ Current location identified: Materials 01624_ Acquired Imp. Heat Sink. 01625_ Acquired Pulse Rifle. 01629_ Acquired Hardlight Generator. Map ----- +----------------------------------------------------+ | ?????# ##+#???????????? | | ?????# ^ # ???????????? | | ?????#!] # ???????????? | | ??####!] """ """ # ???????????? | | ?##!! """ """ # ???????????? | | ?#! """ """ + ????????????? | | ?#! #"?????????????? | | ?#! #??????????????? | | ?#! ######??????????????? | | ?##!!### ###### #???????????????????? | | ??##??# #?????# #??????#+######?????? | | ??????##??????# #??????# # #?????? | | ??????????????# ######## #"" #?????? | | ??????????????# #"T #?????? | | ??????????????# #"" #?????? | | ???????######## + #?????? | | ???????# [# ### ####### #?????? | | ???????# # g #?# #?????# #?????? | | ???????# # g #?# #?????# #?????? | | ???????# "Y" # g ###+####### #?????? | | ???????# """ + # """ #######?????? | | ???????# # # ] "Y" #???????????? | | ???????###+#### # #???????????? | | ?????????# # #???????????? | | ?????????# + !#???????????? | | ?????????# @ # """"" #???????????? | | ?????????###+## < # """"" #???????????? | | ?????????? # # """"" #???????????? | | ???????? ##### #???????????? | | ?????? #???#######?##???????????? | | ????# #????????????????????????? | | ????# """ """ #????????????????????????? | | ????# """ """ #????????????????????????? | | ????# """ """ #????????????????????????? | | ??????? ?????????????????????????? | | ???????##??###?????????????????????????? | | | | | | | | | | | | | | | | | | | | | | | | | | | | | +----------------------------------------------------+ Best States ------------- Heat Dissipation 72 Energy Generation 19 Energy Capacity 430 Matter Stores 300 Matter Capacity 300 Sight Range 16 Terrain Scan Density 10 Armor Coverage 225 Core Shielding 20 Utility Shielding 33 Evasion (%) 63 Targeting Accuracy 6 Item Schematics ----------------- Grenade Launcher | -9/Materials | Scanalyzed Cooling System | -9/Materials | Scanalyzed Imp. Grenade Launcher | -9/Materials | Scanalyzed Robot Schematics ------------------ None Fabricated ------------ Nothing Alien Tech Used ----------------- None Achievements -------------- None Challenges ------------ None Game ------ Seed TeslaExperimentalPurifier Manual? 0 Play Time 01:06:15 Cumulative 66.8 hours Start 2021.02.19 @ 08:25:29 End 2021.10.01 @ 17:22:37 Sessions 3 Manual Loads 0 Difficulty Rogue Special Mode None Game No. 30 Rogue 27 Adventurer 3 Explorer 0 Win Type - Total 0 Types 0/0/0/0/0/0/0/0/0 Lore% 15 Gallery% 37 Achievement% 24 Wizard Run 0 Options --------- ASCII 0 Keyboard 0 Movement Mouse Keybinds 0 Fullscreen 1 Font 18/SmallcapsGlow Map View 76x50 Tactical HUD 1 Map Filters NONE Filters NONE Steam 1 RUN: 37f64fae-6532-47c0-b3f2-9e1357436d64